bitfinex-derivatives/quotes_SOLF0:USTF0_20260310
["timestamp","ask_amount","ask_price","bid_price","bid_amount"]
[1773141400773,4.0517405,86.734,86.68,3.41096346]
[1773141401568,0.07284253,86.716,86.68,3.41096346]
[1773141401763,0.07284253,86.716,86.652,20.771]
[1773141401764,0.07284253,86.716,86.69,3.41096346]
[1773141402272,4.0517405,86.734,86.69,3.41096346]
[1773141402673,10.376,86.733,86.69,3.41096346]
[1773141404969,14.4277405,86.733,86.69,3.41096346]
[1773141405570,4.0517405,86.733,86.692,10.381]
[1773141406170,10.375,86.74,86.7,7.3129282]
[1773141406776,10.6025819,86.798,86.652,20.771]
[1773141406777,4.0517405,86.749,86.71,3.41096346]
[1773141406971,4.0517405,86.749,86.71,7.3129282]
[1773141407277,4.0517405,86.749,86.711,10.378]
[1773141407479,10.373,86.756,86.712,3.90196474]
[1773141407679,10.373,86.756,86.72,3.41096346]
[1773141408570,10.372,86.762,86.721,3.90196474]
[1773141408766,4.0517405,86.759,86.706,3.90196474]
[1773141410178,4.0517405,86.749,86.706,3.90196474]
[1773141410367,0.07271076,86.741,86.706,3.90196474]
[1773141411478,3.7606632,86.739,86.692,3.95605426]
[1773141412472,3.7606632,86.738,86.692,3.95605426]
[1773141412675,3.7606632,86.729,86.678,3.95605426]
[1773141412875,3.7606632,86.729,86.64,21.42971062]
[1773141412876,3.7606632,86.729,86.681,3.95605426]
[1773141413370,14.1366632,86.728,86.681,3.95605426]
[1773141413566,3.7606632,86.727,86.681,3.95605426]
[1773141414380,10.377,86.725,86.681,3.95605426]
[1773141415178,10.377,86.723,86.681,3.95605426]
[1773141417174,10.378,86.718,86.681,3.95605426]
[1773141418976,3.7606632,86.722,86.682,3.95605426]
[1773141419181,10.377,86.726,86.682,3.95605426]
[1773141419783,3.7606632,86.729,86.683,10.382]
[1773141419982,3.7606632,86.729,86.683,14.33805426]
[1773141420283,3.7606632,86.729,86.61,205.52062474]
[1773141420284,3.7606632,86.748,86.71,3.40199454]
[1773141420582,3.7606632,86.748,86.702,3.95605426]
[1773141421485,14.1346632,86.746,86.702,3.95605426]
[1773141421784,3.7606632,86.746,86.702,3.95605426]
[1773141422085,3.7606632,86.746,86.703,10.379]
[1773141424585,3.76607666,86.761,86.708,3.75472526]
[1773141424889,3.76607666,86.759,86.71,3.40199454]
[1773141425892,3.76607666,86.759,86.71,7.1567198]
[1773141426086,3.76607666,86.779,86.721,3.75472526]
[1773141426494,3.40199454,86.77,86.721,3.75472526]
[1773141426693,3.76607666,86.769,86.721,3.75472526]
[1773141426994,10.372,86.768,86.722,10.377]
[1773141427198,3.76607666,86.767,86.722,10.377]
[1773141427793,3.76607666,86.765,86.721,3.75472526]
[1773141427994,3.76607666,86.759,86.704,3.75472526]
[1773141428194,3.76607666,86.759,86.711,3.75472526]
[1773141429498,7.1680712,86.77,86.721,3.75472526]
[1773141430099,3.76607666,86.769,86.721,3.75472526]
[1773141430399,10.372,86.766,86.721,14.13172526]
[1773141430990,3.76607666,86.759,86.704,3.75472526]
[1773141431397,3.76607666,86.749,86.704,3.75472526]
[1773141432492,3.76607666,86.748,86.704,3.75472526]
[1773141432892,3.76607666,86.781,86.73,3.40199454]
[1773141433096,3.76607666,86.781,86.73,7.1567198]
[1773141433399,3.76607666,86.781,86.731,3.75472526]
[1773141434101,10.371,86.773,86.731,3.75472526]
[1773141434301,3.76607666,86.769,86.72,3.40199454]
[1773141435499,3.76607666,86.769,86.723,10.377]
[1773141436201,10.371,86.771,86.731,3.75472526]
[1773141437598,14.13707666,86.771,86.731,3.75472526]
[1773141437902,3.76607666,86.767,86.727,10.376]
[1773141440102,3.76607666,86.765,86.71,3.40199454]
[1773141440303,3.76607666,86.739,86.69,7.1567198]
[1773141440498,2.00587352,86.814,86.701,3.75472526]
[1773141440499,3.76607666,86.749,86.701,3.75472526]
[1773141440804,10.375,86.743,86.701,3.75472526]
[1773141442305,10.375,86.743,86.701,14.13372526]
[1773141443399,3.40199454,86.76,86.71,3.40199454]
[1773141443605,3.40199454,86.76,86.711,3.75472526]
[1773141444504,10.373,86.758,86.715,10.378]
[1773141445307,10.373,86.758,86.728,0.07343381]
[1773141445607,14.13907666,86.758,86.728,0.07343381]
[1773141446105,10.373,86.753,86.728,0.07343381]
[1773141452508,3.76607666,86.739,86.697,3.75472526]
[1773141453302,10.375,86.737,86.698,10.38]
[1773141454704,8.53963043,86.78,86.705,3.98070563]
[1773141454705,10.374,86.744,86.705,3.98070563]
[1773141455410,3.91998693,86.754,86.706,14.35970563]
[1773141456612,10.374,86.745,86.706,14.35970563]
[1773141458211,3.91998693,86.738,86.7,3.40199454]
[1773141458413,3.91998693,86.738,86.694,3.98070563]
[1773141459310,10.375,86.736,86.694,3.98070563]
[1773141459515,3.91998693,86.735,86.694,3.98070563]
[1773141460305,10.376,86.734,86.694,3.98070563]
[1773141462818,10.376,86.734,86.7,3.40199454]
[1773141463015,3.91998693,86.735,86.701,3.98070563]
[1773141463219,3.91998693,86.76,86.711,3.98070563]
[1773141463624,3.91998693,86.759,86.711,3.98070563]
[1773141463921,3.91998693,86.749,86.701,3.98070563]
[1773141464420,10.374,86.746,86.702,10.379]
[1773141464622,14.29398693,86.746,86.702,10.379]
[1773141466413,14.29398693,86.746,86.703,3.98070563]
[1773141467114,3.91998693,86.739,86.694,10.38]
[1773141468229,0.07269113,86.725,86.694,10.38]
[1773141468523,3.91998693,86.719,86.672,3.98070563]
[1773141469225,3.91998693,86.719,86.68,7.47077997]
[1773141469522,3.91998693,86.719,86.681,4.06878543]
[1773141470620,3.91998693,86.719,86.679,10.382]
[1773141471626,3.91998693,86.719,86.673,4.06878543]
[1773141472325,0.07287322,86.705,86.673,4.06878543]
[1773141472828,3.85638498,86.705,86.665,10.384]
[1773141473024,3.85638498,86.705,86.661,4.06878543]
[1773141474328,10.379,86.703,86.661,4.06878543]
[1773141474529,3.85638498,86.705,86.661,4.06878543]
[1773141475228,3.85638498,86.705,86.662,4.06878543]
[1773141475927,3.85638498,86.705,86.665,4.06878543]
[1773141476228,3.85638498,86.705,86.538,70.7764019]
[1773141476229,0.07287322,86.705,86.671,4.06878543]
[1773141476521,3.78351176,86.735,86.691,4.06878543]
[1773141476717,3.78351176,86.759,86.7,3.40373631]
[1773141477927,3.78351176,86.759,86.7,7.47252174]
[1773141478123,3.78351176,86.759,86.701,4.06878543]
[1773141478323,10.374,86.748,86.703,10.379]
[1773141479821,14.15751176,86.748,86.703,10.379]
[1773141482726,3.78351176,86.747,86.703,10.379]
[1773141482927,3.78351176,86.747,86.704,4.06878543]
[1773141483829,3.78351176,86.747,86.657,28.7230746]
[1773141483830,4.01227643,86.759,86.711,3.76403119]
[1773141484633,4.01227643,86.759,86.72,3.40373631]
[1773141484932,10.373,86.757,86.72,3.40373631]
[1773141485130,10.373,86.757,86.674,20.766]
[1773141485131,4.01227643,86.756,86.7,3.40373631]
[1773141485738,4.01227643,86.746,86.701,10.379]
[1773141485937,4.01227643,86.746,86.702,3.76403119]
[1773141486438,4.01227643,86.746,86.71,3.40373631]
[1773141486640,4.01227643,86.76,86.712,10.378]
[1773141486834,4.01227643,86.76,86.713,3.76403119]
[1773141487034,4.01227643,86.76,86.7,3.76403119]
[1773141487227,4.01227643,86.747,86.702,3.76403119]
[1773141487428,4.01227643,86.747,86.71,3.40373631]
[1773141488332,8.55733651,86.783,86.712,3.76403119]
[1773141488333,4.01227643,86.769,86.712,3.76403119]
[1773141488528,4.01227643,86.769,86.72,3.40373631]
[1773141489128,4.01227643,86.769,86.712,3.76403119]
[1773141489333,4.01227643,86.762,86.716,10.378]
[1773141489730,4.01227643,86.762,86.712,3.76403119]
[1773141489934,4.01227643,86.748,86.708,10.379]
[1773141490440,4.01227643,86.748,86.708,14.14303119]
[1773141491039,14.38627643,86.747,86.708,3.76403119]
[1773141491744,4.01227643,86.746,86.708,3.76403119]
[1773141492740,4.01227643,86.746,86.709,14.14203119]
[1773141492941,4.01227643,86.746,86.71,3.40373631]
[1773141493543,4.01227643,86.746,86.709,14.14203119]
[1773141496547,4.01227643,86.746,86.71,3.76403119]
[1773141497647,10.373,86.756,86.712,3.76403119]
[1773141497945,4.01227643,86.771,86.731,3.76403119]
[1773141499449,4.01227643,86.771,86.731,14.14003119]
[1773141499650,4.01227643,86.771,86.732,3.76403119]
[1773141500948,4.01227643,86.771,86.724,10.377]
[1773141501247,4.01227643,86.771,86.721,3.76403119]
[1773141501450,10.372,86.764,86.721,3.76403119]
[1773141502151,10.372,86.764,86.723,10.377]
[1773141502452,10.372,86.764,86.724,3.76403119]
[1773141504155,10.372,86.764,86.726,10.376]
[1773141505949,4.01227643,86.769,86.726,10.376]
[1773141506253,4.01227643,86.769,86.727,3.76403119]
[1773141507450,4.01227643,86.769,86.729,3.76403119]
[1773141509954,4.01227643,86.769,86.732,3.76403119]
[1773141510153,4.01227643,86.779,86.732,3.76403119]
[1773141510754,4.01227643,86.776,86.733,10.376]
[1773141512956,4.01227643,86.776,86.733,14.14003119]
[1773141514453,3.70979343,86.773,86.733,14.14003119]
[1773141515462,14.08079343,86.772,86.733,14.14003119]
[1773141515864,3.70979343,86.772,86.733,14.14003119]
[1773141516064,3.70979343,86.772,86.734,3.85544075]
[1773141516865,3.70979343,86.772,86.736,10.375]
[1773141517360,3.70979343,86.772,86.737,3.85544075]
[1773141521662,3.70979343,86.772,86.721,3.85544075]
[1773141522459,10.372,86.764,86.724,3.85544075]
[1773141522868,10.372,86.764,86.731,3.85544075]
[1773141525066,14.08179343,86.764,86.731,3.85544075]
[1773141525865,20.735,86.806,86.71,21.42971062]
[1773141525866,3.70979343,86.759,86.717,3.85544075]
[1773141527371,10.373,86.757,86.717,3.85544075]
[1773141527569,3.70979343,86.759,86.721,3.95873629]
[1773141527768,4.02529077,86.77,86.721,3.95873629]
[1773141528370,4.02529077,86.767,86.727,10.376]
[1773141528771,14.39729077,86.765,86.721,3.95873629]
[1773141529072,4.02529077,86.764,86.721,3.95873629]
[1773141529475,4.02529077,86.762,86.721,3.95873629]
[1773141531470,4.02529077,86.762,86.723,3.95873629]
[1773141532178,4.02529077,86.762,86.725,14.33573629]
[1773141533777,4.02529077,86.762,86.725,3.95873629]
[1773141533973,4.02529077,86.755,86.71,7.35891173]
[1773141534375,4.02529077,86.755,86.711,3.95873629]
[1773141535478,4.02529077,86.755,86.712,3.95873629]
[1773141536484,4.02529077,86.755,86.714,10.378]
[1773141536882,4.02529077,86.753,86.714,10.378]
[1773141537482,4.02529077,86.753,86.714,14.33673629]
[1773141539181,4.02529077,86.751,86.714,14.33673629]
[1773141539979,4.02529077,86.751,86.715,3.95873629]
[1773141540184,4.02529077,86.751,86.701,3.95873629]
[1773141541183,4.02529077,86.751,86.71,3.40017544]
[1773141541384,4.02529077,86.749,86.717,0.0727276]
[1773141542483,4.02529077,86.744,86.717,0.0727276]
[1773141543479,3.95060327,86.755,86.717,0.0727276]
[1773141543983,3.95060327,86.755,86.711,3.95873629]
[1773141544885,3.95060327,86.753,86.712,4.05906051]
[1773141547187,3.95060327,86.753,86.71,3.40017544]
[1773141547188,3.95060327,86.753,86.714,4.05906051]
[1773141547688,3.95060327,86.764,86.73,3.40017544]
[1773141547883,3.95060327,86.764,86.723,4.05906051]
[1773141549591,3.95060327,86.764,86.726,10.376]
[1773141549996,3.95060327,86.764,86.723,4.05906051]
[1773141550188,3.40017544,86.76,86.711,4.05906051]
[1773141550389,3.95060327,86.759,86.711,4.05906051]
[1773141550589,3.95060327,86.759,86.718,10.377]
[1773141550790,3.95060327,86.759,86.721,4.05906051]
[1773141552500,3.95060327,86.759,86.721,14.43606051]
[1773141555291,3.95060327,86.759,86.721,4.05906051]
[1773141555292,3.95060327,86.758,86.721,4.05906051]
[1773141555492,3.95060327,86.758,86.714,10.378]
[1773141555793,3.95060327,86.769,86.721,4.05906051]
[1773141557496,3.95060327,86.765,86.722,14.43606051]
[1773141558300,3.95060327,86.765,86.723,4.05906051]
[1773141566617,3.95060327,86.765,86.726,4.05906051]
[1773141568516,3.95060327,86.772,86.731,4.05906051]
[1773141569314,14.32160327,86.771,86.731,4.05906051]
[1773141569715,3.95060327,86.77,86.731,4.05906051]
[1773141570112,3.95060327,86.766,86.731,4.05906051]
[1773141570419,3.95060327,86.766,86.729,4.05906051]
[1773141571517,14.32260327,86.765,86.729,4.05906051]
[1773141571920,3.95060327,86.764,86.729,4.05906051]
[1773141574416,4.04729751,86.761,86.71,3.40017544]
[1773141574614,4.04729751,86.759,86.709,3.67026594]
[1773141575009,4.04729751,86.753,86.709,3.67026594]
[1773141575212,4.04729751,86.753,86.71,3.40017544]
[1773141575417,4.04729751,86.753,86.713,3.67026594]
[1773141577725,4.04729751,86.738,86.703,21.42971062]
[1773141577921,4.04729751,86.738,86.691,3.67026594]
[1773141578113,4.04729751,86.752,86.711,3.67026594]
[1773141580629,4.04729751,86.763,86.721,3.67026594]
[1773141581619,10.372,86.761,86.721,3.67026594]
[1773141581825,4.04729751,86.76,86.721,3.67026594]
[1773141590529,3.74099101,86.757,86.711,3.67041913]
[1773141590729,3.74099101,86.749,86.7,3.67041913]
[1773141591627,3.74099101,86.739,86.693,10.38]
[1773141592227,3.74099101,86.739,86.693,14.05041913]
[1773141593125,3.74099101,86.739,86.68,24.96558599]
[1773141593126,3.74099101,86.749,86.697,3.67041913]
[1773141593428,3.74099101,86.761,86.711,3.67041913]
[1773141594332,3.74099101,86.756,86.714,10.378]
[1773141594728,3.74099101,86.756,86.714,14.04841913]
[1773141595325,10.373,86.753,86.714,14.04841913]
[1773141595930,10.373,86.753,86.714,3.67041913]
[1773141597431,10.373,86.753,86.714,14.04841913]
[1773141597632,3.74099101,86.746,86.7,3.40266774]
[1773141597837,3.74099101,86.746,86.701,3.67041913]
[1773141598928,3.74099101,86.746,86.708,10.379]
[1773141599135,3.74099101,86.769,86.721,3.67041913]
[1773141599934,3.74099101,86.757,86.71,3.40266774]
[1773141600137,3.74099101,86.749,86.7,3.40266774]
[1773141600634,3.74099101,86.74,86.7,3.40266774]
[1773141600832,3.74099101,86.74,86.696,3.67041913]
[1773141601732,10.376,86.733,86.696,3.67041913]
[1773141601933,14.11699101,86.733,86.696,3.67041913]
[1773141603436,3.74099101,86.732,86.696,3.67041913]
[1773141604039,3.74099101,86.732,86.695,10.38]
[1773141606431,3.68695559,86.749,86.7,7.44017051]
[1773141607637,10.376,86.73,86.7,4.03750277]
[1773141607840,10.376,86.73,86.69,3.40266774]
[1773141608143,3.68695559,86.739,86.691,4.03750277]
[1773141609238,10.375,86.736,86.697,10.38]
[1773141609441,10.375,86.736,86.69,3.40266774]
[1773141609442,3.68695559,86.739,86.7,3.40266774]
[1773141609741,3.68695559,86.739,86.701,4.03750277]
[1773141609941,3.68695559,86.739,86.702,4.03750277]
[1773141612940,3.68695559,86.739,86.7,3.40266774]
[1773141615746,10.376,86.734,86.691,4.03750277]
[1773141615943,3.68695559,86.733,86.691,4.03750277]
[1773141616337,3.68695559,86.733,86.693,10.38]
[1773141617849,3.68695559,86.733,86.693,14.41750277]
[1773141618544,3.68695559,86.733,86.696,4.03750277]
[1773141620149,3.68695559,86.733,86.7,3.40266774]
[1773141621348,3.68695559,86.733,86.701,10.379]
[1773141621743,3.68695559,86.733,86.7,3.40266774]
[1773141621744,3.68695559,86.746,86.703,14.41650277]
[1773141621941,3.68695559,86.746,86.704,4.03750277]
[1773141623048,10.374,86.745,86.705,10.379]
[1773141623250,14.06095559,86.745,86.706,4.03750277]
[1773141624351,3.68695559,86.744,86.706,4.03750277]
[1773141625753,3.68695559,86.744,86.707,10.379]
[1773141626548,3.68695559,86.744,86.707,14.41650277]
[1773141628055,3.68695559,86.744,86.707,4.03750277]
[1773141630757,10.373,86.754,86.707,4.03750277]
[1773141631055,3.68695559,86.753,86.721,4.03750277]
[1773141631249,3.68695559,86.775,86.721,4.03750277]
[1773141631450,3.68695559,86.773,86.721,4.03750277]
[1773141631647,3.68695559,86.771,86.721,4.03750277]
[1773141631851,10.373,86.759,86.721,4.03750277]
[1773141632056,3.68695559,86.758,86.721,4.03750277]
[1773141638067,3.89110315,86.756,86.711,3.70009013]
[1773141639574,14.26510315,86.747,86.711,3.70009013]
[1773141641375,3.89110315,86.746,86.711,3.70009013]
[1773141641575,10.375,86.742,86.711,3.70009013]
[1773141641776,3.89110315,86.746,86.711,3.70009013]
[1773141642777,3.89110315,86.739,86.689,3.70009013]
[1773141643477,3.89110315,86.753,86.711,3.70009013]
[1773141643879,3.89110315,86.753,86.72,3.40266774]
[1773141644077,14.26410315,86.753,86.711,3.70009013]
[1773141644269,3.89110315,86.752,86.711,3.70009013]
[1773141645479,10.374,86.749,86.711,3.70009013]
[1773141646084,10.373,86.756,86.721,3.70009013]
[1773141648780,3.89110315,86.763,86.721,3.70009013]
[1773141649579,3.89110315,86.763,86.723,3.8451503]
[1773141650273,3.89110315,86.763,86.714,14.2231503]
[1773141650478,3.89110315,86.763,86.715,3.8451503]
[1773141652387,3.75127477,86.759,86.715,3.8451503]
[1773141653585,3.75127477,86.758,86.715,3.8451503]
[1773141655987,3.75127477,86.758,86.72,3.40090776]
[1773141657794,3.75127477,86.758,86.715,3.8451503]
[1773141659396,10.373,86.756,86.715,3.8451503]
[1773141659694,3.75127477,86.758,86.715,3.8451503]
[1773141660100,3.75127477,86.739,86.689,3.8451503]
[1773141660295,3.75127477,86.75,86.701,3.8451503]
[1773141660591,3.75127477,86.75,86.7,3.40090776]
[1773141660592,10.372,86.761,86.711,3.8451503]
[1773141660792,14.12327477,86.761,86.711,3.8451503]
[1773141660998,3.75127477,86.76,86.711,3.8451503]
[1773141661188,3.75127477,86.76,86.72,3.40090776]
[1773141661388,3.75127477,86.76,86.721,3.8451503]
[1773141661592,3.75127477,86.768,86.721,3.8451503]
[1773141661999,3.75127477,86.768,86.73,3.40090776]
[1773141662591,3.75127477,86.768,86.722,3.8451503]
[1773141663501,3.75127477,86.768,86.73,3.40090776]
[1773141663699,3.75127477,86.768,86.74,3.40090776]
[1773141664404,10.37,86.777,86.74,3.40090776]
[1773141664804,10.37,86.777,86.731,3.70843257]
[1773141666504,10.37,86.777,86.74,3.40090776]
[1773141667401,14.11721905,86.777,86.74,3.40090776]
[1773141669108,3.74721905,86.776,86.731,3.70843257]
[1773141670204,3.74721905,86.774,86.731,3.70843257]
[1773141672602,10.371,86.772,86.731,3.70843257]
[1773141672805,14.11821905,86.772,86.731,3.70843257]
[1773141673007,3.74721905,86.771,86.731,3.70843257]
[1773141673207,3.74721905,86.768,86.731,3.70843257]
[1773141674415,3.74721905,86.766,86.721,3.70843257]
[1773141675504,8.73527238,86.797,86.705,21.56291825]
[1773141675698,8.73527238,86.797,86.652,161.556]
[1773141675699,28.54934894,86.788,86.703,56.15291825]
[1773141675901,28.54934894,86.788,86.703,21.54173735]
[1773141676207,28.54934894,86.788,86.71,3.40090776]
[1773141676506,28.54934894,86.788,86.717,21.54063256]
[1773141676710,28.54934894,86.788,86.74,3.40090776]
[1773141676913,28.54934894,86.803,86.75,3.40090776]
[1773141677206,28.54934894,86.803,86.74,3.40090776]
[1773141677400,28.63571327,86.789,86.724,21.54063256]
[1773141677600,28.63571327,86.779,86.73,3.40090776]
[1773141677804,28.63571327,86.779,86.715,21.54063256]
[1773141678004,28.63571327,86.779,86.716,21.54063256]
[1773141678204,28.63571327,86.779,86.715,21.54063256]
[1773141678512,28.63571327,86.809,86.716,21.54063256]
[1773141678709,28.63571327,86.809,86.76,3.40090776]
[1773141678912,28.63571327,86.799,86.74,3.40090776]
[1773141679210,28.63571327,86.799,86.76,3.40090776]
[1773141679910,28.63571327,86.799,86.75,3.40090776]
[1773141680912,28.63571327,86.799,86.76,3.40090776]
[1773141682409,28.63571327,86.799,86.75,3.40090776]
[1773141692223,28.63571327,86.799,86.76,3.40090776]
[1773141693524,28.63571327,86.799,86.752,10.373]
[1773141697534,28.58239835,86.813,86.77,3.40090776]
[1773141697835,28.58239835,86.813,86.78,3.40090776]
[1773141699029,28.58239835,86.831,86.8,3.40090776]
[1773141699232,28.58239835,86.831,86.79,3.40090776]
[1773141699431,28.58239835,86.831,86.748,20.748]
[1773141699432,28.58239835,86.831,86.78,3.40090776]
[1773141699632,28.58239835,86.831,86.783,10.37]
[1773141699834,28.58239835,86.831,86.79,3.40090776]
[1773141701238,28.58239835,86.831,86.798,10.368]
[1773141702137,2.00488547,86.875,86.78,3.40090776]
[1773141702138,28.58691837,86.829,86.78,3.40090776]
[1773141702442,28.58691837,86.809,86.75,3.40090776]
[1773141703336,28.58691837,86.809,86.766,10.372]
[1773141710434,28.58691837,86.809,86.735,21.54063256]
[1773141710435,28.58691837,86.809,86.77,3.40090776]
[1773141711342,28.58691837,86.809,86.771,10.371]
[1773141712346,28.58691837,86.809,86.762,10.372]
[1773141722157,28.58691837,86.809,86.767,10.372]
[1773141722860,28.53735241,86.806,86.767,10.372]
[1773141723768,28.54447352,86.799,86.746,21.54063256]
[1773141724066,28.54447352,86.789,86.74,3.39722438]
[1773141724667,49.20544069,86.926,86.719,20.755]
[1773141724668,28.54436603,86.8,86.77,3.39722438]
[1773141727473,28.54436603,86.8,86.767,10.372]
[1773141730768,28.54436603,86.8,86.76,3.39722438]
[1773141730969,31.94159041,86.8,86.743,21.54063256]
[1773141731467,28.54436603,86.8,86.75,3.39722438]
[1773141731969,31.94159041,86.8,86.74,3.39722438]
[1773141732570,28.52942908,86.789,86.741,10.375]
[1773141734971,28.52942908,86.789,86.75,3.39722438]
[1773141735172,28.52942908,86.789,86.76,3.39722438]
[1773141736474,28.52942908,86.789,86.75,3.39722438]
[1773141737374,28.52942908,86.789,86.759,10.372]
[1773141738772,28.52942908,86.789,86.752,10.373]
[1773141738976,28.52942908,86.789,86.75,3.39722438]
[1773141741475,28.52942908,86.789,86.751,10.373]
[1773141743585,28.52942908,86.789,86.76,3.39722438]
[1773141743778,28.45748831,86.801,86.76,3.39722438]
[1773141745483,28.45748831,86.801,86.767,10.372]
[1773141749485,28.45748831,86.801,86.774,10.371]
[1773141749788,28.45748831,86.801,86.77,3.39722438]
[1773141751494,28.45748831,86.801,86.78,10.37]
[1773141753691,28.43687829,86.825,86.786,10.369]
[1773141753894,28.43687829,86.825,86.79,3.39722438]
[1773141754094,28.43697516,86.862,86.8,3.39722438]
[1773141754298,28.43697516,86.859,86.81,3.39722438]
[1773141754498,28.43697516,86.857,86.81,3.39722438]
[1773141754797,28.43697516,86.856,86.786,21.54063256]
[1773141754997,28.43697516,86.856,86.8,3.39722438]
[1773141755293,28.43697516,86.856,86.81,3.39722438]
[1773141755893,28.44560533,86.855,86.805,10.367]
[1773141756598,28.44560533,86.855,86.81,3.39722438]
[1773141757000,28.45722533,86.853,86.81,3.39722438]
[1773141757293,28.45722533,86.853,86.805,10.367]
[1773141758096,28.45722533,86.853,86.811,10.366]
[1773141759297,28.45722533,86.853,86.82,3.39722438]
[1773141759699,28.45722533,86.853,86.83,3.39722438]
[1773141760299,28.44856665,86.886,86.84,3.39722438]
[1773141762502,28.44856665,86.886,86.835,10.363]
[1773141762908,28.44856665,86.886,86.843,10.362]
[1773141764010,28.44856665,86.886,86.835,10.363]
[1773141764811,28.5037083,86.869,86.82,3.39722438]
[1773141765307,28.5037083,86.869,86.828,10.364]
[1773141767810,28.5037083,86.869,86.821,10.365]
[1773141769213,28.50729903,86.911,86.84,3.39722438]
[1773141769513,20.701,86.948,86.84,3.39722438]
[1773141769514,28.50729903,86.889,86.84,3.39722438]
[1773141769710,3.39722438,86.87,86.82,3.39722438]
[1773141769910,28.50729903,86.859,86.81,3.39722438]
[1773141770110,28.50729903,86.859,86.72,49.54348133]
[1773141770111,28.50729903,86.859,86.8,3.39722438]
[1773141770417,28.50729903,86.849,86.79,3.39722438]
[1773141770909,28.50729903,86.839,86.78,3.39722438]
[1773141772213,28.50729903,86.839,86.804,10.367]
[1773141782725,28.31325248,86.851,86.81,3.39495109]
[1773141783727,28.31325248,86.851,86.826,10.364]
[1773141784829,28.33392335,86.879,86.832,10.364]
[1773141786434,28.31932223,86.878,86.832,10.364]
[1773141786831,28.31932223,86.89,86.85,3.39495109]
[1773141787028,28.31932223,86.908,86.86,3.39495109]
[1773141787225,28.31687297,86.899,86.85,10.362]
[1773141787533,28.31687297,86.889,86.84,3.39495109]
[1773141788229,28.31687297,86.889,86.841,10.363]
[1773141788633,28.31687297,86.889,86.848,10.362]
[1773141788835,28.31687297,86.889,86.819,14.25287491]
[1773141789136,28.31687297,86.889,86.85,3.39495109]
[1773141789334,28.31687297,86.889,86.84,3.39495109]
[1773141790332,28.31687297,86.889,86.85,10.362]
[1773141791129,28.31687297,86.889,86.856,10.361]
[1773141792336,28.31687297,86.889,86.85,3.39495109]
[1773141792337,28.31687297,86.889,86.864,10.36]
[1773141792636,28.31687297,86.889,86.85,3.39495109]
[1773141792935,28.31687297,86.889,86.847,10.362]
[1773141793338,28.31687297,86.889,86.84,3.39495109]
[1773141793529,28.31687297,86.889,86.85,3.39495109]
[1773141794139,28.28119631,86.909,86.88,3.39495109]
[1773141794442,28.28119631,86.939,86.89,3.39495109]
[1773141794835,28.28119631,86.929,86.88,3.39495109]
[1773141795440,28.28119631,86.929,86.881,10.358]
[1773141796737,28.28119631,86.929,86.887,10.357]
[1773141799740,28.28119631,86.929,86.88,3.39495109]
[1773141800335,28.3056825,86.926,86.871,10.359]
[1773141800538,28.3056825,86.926,86.87,3.39495109]
[1773141800935,28.3056825,86.926,86.877,10.358]
[1773141801134,28.3056825,86.926,86.88,3.39495109]
[1773141802248,28.3056825,86.926,86.877,10.358]
[1773141803842,28.3056825,86.926,86.89,3.39495109]
[1773141804642,28.3056825,86.926,86.88,3.39495109]
[1773141806650,28.3056825,86.926,86.89,10.357]
[1773141806949,28.3056825,86.926,86.89,13.75195109]
[1773141807346,28.3056825,86.926,86.9,3.39495109]
[1773141807548,28.35244227,86.948,86.9,3.39495109]
[1773141807849,10.35,86.946,86.9,3.39495109]
[1773141808050,28.35244227,86.945,86.9,3.39495109]
[1773141808255,28.35244227,86.948,86.92,3.39495109]
[1773141808641,28.35244227,86.948,86.91,3.39495109]
[1773141808939,28.35244227,86.948,86.915,10.354]
[1773141809141,28.35244227,86.948,86.863,14.25287491]
[1773141809349,28.35244227,86.948,86.851,21.3757631]
[1773141809350,28.35837543,86.939,86.89,3.39495109]
[1773141809550,28.35837543,86.939,86.88,3.39495109]
[1773141809749,28.35837543,86.939,86.89,3.39495109]
[1773141810352,28.35837543,86.939,86.894,10.356]
[1773141811955,20.692,86.985,86.86,20.721]
[1773141811956,28.3494465,86.929,86.885,10.357]
[1773141813450,28.3494465,86.929,86.893,10.357]
[1773141815352,28.3494465,86.929,86.886,10.357]
[1773141815757,28.3494465,86.929,86.88,3.39495109]
[1773141815962,28.3494465,86.929,86.89,3.39495109]
[1773141816464,28.3494465,86.929,86.88,3.39495109]
[1773141817758,28.3494465,86.929,86.896,10.356]
[1773141818464,28.3494465,86.929,86.889,10.357]
[1773141819260,28.3494465,86.929,86.88,3.39495109]
[1773141819563,23.13743601,86.919,86.87,3.39495109]
[1773141820462,23.13743601,86.909,86.836,14.25287491]
[1773141820661,23.13743601,86.909,86.85,3.39495109]